[Event "Titled Tuesday Blitz November 08 Early 2022"]
[White "Nakamura, Hikaru"]
[Black "Svane, Rasmus"]
[WhiteFideId "2016192"]
[BlackFideId "4657101"]
[WhiteElo "2909"]
[BlackElo "2674"]
[Result "1-0"]
[Round "10"]
[TimeControl "180+1"]
[Date "2022.11.08"]
[WhiteClock "0:00:08"]
[BlackClock "0:00:03"]

1. Nf3 {[%clk 0:03:00]}  d5 {[%clk 0:02:59]} 2. g3 {[%clk 0:03:01]}  Nf6 {[%clk 0:02:59]} 3. Bg2 {[%clk 0:03:01]}  e6 {[%clk 0:03:00]} 4. d3 {[%clk 0:02:59]}  Be7 {[%clk 0:03:00]} 5. Nbd2 {[%clk 0:03:00]}  O-O {[%clk 0:03:00]} 6. e4 {[%clk 0:03:00]}  a5 {[%clk 0:02:19]} 7. O-O {[%clk 0:02:57]}  dxe4 {[%clk 0:02:13]} 8. dxe4 {[%clk 0:02:57]}  Nc6 {[%clk 0:02:13]} 9. e5 {[%clk 0:02:39]}  Nd7 {[%clk 0:02:14]} 10. Qe2 {[%clk 0:02:39]}  b6 {[%clk 0:02:06]} 11. Rd1 {[%clk 0:02:36]}  Bb7 {[%clk 0:01:59]} 12. Ne4 {[%clk 0:02:23]}  Qc8 {[%clk 0:01:59]} 13. Bg5 {[%clk 0:02:15]}  Bxg5 {[%clk 0:01:49]} 14. Nexg5 {[%clk 0:02:16]}  h6 {[%clk 0:01:49]} 15. Nh3 {[%clk 0:02:14]}  Rd8 {[%clk 0:01:41]} 16. Nf4 {[%clk 0:02:08]}  Nc5 {[%clk 0:01:40]} 17. Nh5 {[%clk 0:01:40]}  Rxd1+ {[%clk 0:01:40]} 18. Rxd1 {[%clk 0:01:40]}  Qf8 {[%clk 0:01:41]} 19. Nd4 {[%clk 0:01:39]}  Nxd4 {[%clk 0:01:15]} 20. Rxd4 {[%clk 0:01:38]}  Bxg2 {[%clk 0:01:16]} 21. Kxg2 {[%clk 0:01:39]}  Rd8 {[%clk 0:01:16]} 22. Rg4 {[%clk 0:01:37]}  g6 {[%clk 0:01:17]} 23. Nf6+ {[%clk 0:01:10]}  Kg7 {[%clk 0:00:54]} 24. h4 {[%clk 0:00:34]}  Nd7 {[%clk 0:00:40]} 25. h5 {[%clk 0:00:35]}  Qc5 {[%clk 0:00:22]} 26. hxg6 {[%clk 0:00:32]}  Qxe5 {[%clk 0:00:21]} 27. Qxe5 {[%clk 0:00:21]}  Nxe5 {[%clk 0:00:22]} 28. Nh5+ {[%clk 0:00:21]}  Kg8 {[%clk 0:00:15]} 29. gxf7+ {[%clk 0:00:21]}  Kxf7 {[%clk 0:00:15]} 30. Rg7+ {[%clk 0:00:22]}  Kf8 {[%clk 0:00:15]} 31. Rxc7 {[%clk 0:00:22]}  Rd2 {[%clk 0:00:16]} 32. Nf4 {[%clk 0:00:14]}  Rd6 {[%clk 0:00:09]} 33. c4 {[%clk 0:00:10]}  Ke8 {[%clk 0:00:08]} 34. b3 {[%clk 0:00:10]}  Ng4 {[%clk 0:00:04]} 35. Kf3 {[%clk 0:00:09]}  Ne5+ {[%clk 0:00:05]} 36. Ke2 {[%clk 0:00:09]}  a4 {[%clk 0:00:03]} 37. bxa4 {[%clk 0:00:07]}  Rd4 {[%clk 0:00:03]} 38. Nxe6 {[%clk 0:00:07]}  Re4+ {[%clk 0:00:04]} 39. Kf1 {[%clk 0:00:08]}  Nf3 {[%clk 0:00:03]} 40. Ng7+ {[%clk 0:00:07]}  Kd8 {[%clk 0:00:03]} 41. Rf7 {[%clk 0:00:07]}  Re1+ {[%clk 0:00:02]} 42. Kg2 {[%clk 0:00:08]}  Ne5 {[%clk 0:00:03]} 43. Ne6+ {[%clk 0:00:07]}  Ke8 {[%clk 0:00:03]} 44. Rc7 {[%clk 0:00:07]}  Re2 {[%clk 0:00:03]} 45. c5 {[%clk 0:00:07]}  bxc5 {[%clk 0:00:03]} 46. Nxc5 {[%clk 0:00:07]}  Rxa2 {[%clk 0:00:04]} 47. Rh7 {[%clk 0:00:06]}  Ng4 {[%clk 0:00:04]} 48. Kf3 {[%clk 0:00:06]}  Nxf2 {[%clk 0:00:04]} 49. Rxh6 {[%clk 0:00:06]}  Nd1 {[%clk 0:00:04]} 50. Rh4 {[%clk 0:00:06]}  Ke7 {[%clk 0:00:04]} 51. Rd4 {[%clk 0:00:06]}  Nc3 {[%clk 0:00:04]} 52. g4 {[%clk 0:00:06]}  Ra3 {[%clk 0:00:04]} 53. Kg2 {[%clk 0:00:07]}  Ne2 {[%clk 0:00:05]} 54. Re4+ {[%clk 0:00:07]}  Kd6 {[%clk 0:00:04]} 55. Nb7+ {[%clk 0:00:07]}  Kc6 {[%clk 0:00:05]} 56. Rxe2 {[%clk 0:00:08]}  Kxb7 {[%clk 0:00:05]} 57. Re4 {[%clk 0:00:07]}  Kc6 {[%clk 0:00:05]} 58. g5 {[%clk 0:00:08]}  Kd5 {[%clk 0:00:06]} 59. Rg4 {[%clk 0:00:08]}  Ke6 {[%clk 0:00:05]} 60. g6 {[%clk 0:00:08]}  Ra2+ {[%clk 0:00:02]} 61. Kf3 {[%clk 0:00:07]}  Ra3+ {[%clk 0:00:02]} 62. Ke2 {[%clk 0:00:08]}  Kf5 {[%clk 0:00:02]} 63. g7 {[%clk 0:00:08]}  Ra2+ {[%clk 0:00:02]} 64. Kd1 {[%clk 0:00:08]}  Ra1+ {[%clk 0:00:03]} 65. Kc2 {[%clk 0:00:08]} 1-0


[Site "https://www.chess.com"]

[Event "Titled Tuesday Blitz November 08 Early 2022"]
[White "Omariev, Maksim"]
[Black "Trifan, Andrei Ioan"]
[WhiteFideId "4193423"]
[BlackFideId "12967068"]
[WhiteElo "2429"]
[BlackElo "2208"]
[Result "1-0"]
[Round "10"]
[TimeControl "180+1"]
[Date "2022.11.09"]
[WhiteClock "0:00:01"]
[BlackClock "0:00:04"]

1. g4 {[%clk 0:02:55]}  d5 {[%clk 0:02:51]} 2. Bg2 {[%clk 0:02:55]}  c6 {[%clk 0:02:50]} 3. g5 {[%clk 0:02:53]}  e5 {[%clk 0:02:45]} 4. d4 {[%clk 0:02:53]}  e4 {[%clk 0:02:42]} 5. c4 {[%clk 0:02:53]}  h6 {[%clk 0:02:33]} 6. g6 {[%clk 0:02:51]}  fxg6 {[%clk 0:02:32]} 7. Nc3 {[%clk 0:02:51]}  Nf6 {[%clk 0:02:32]} 8. Qb3 {[%clk 0:02:50]}  Qa5 {[%clk 0:02:22]} 9. Bd2 {[%clk 0:02:41]}  dxc4 {[%clk 0:02:09]} 10. Qxc4 {[%clk 0:02:35]}  Qf5 {[%clk 0:02:09]} 11. Bh3 {[%clk 0:02:02]}  Ng4 {[%clk 0:01:59]} 12. f3 {[%clk 0:02:02]}  exf3 {[%clk 0:01:45]} 13. exf3 {[%clk 0:02:03]}  Be6 {[%clk 0:01:38]} 14. fxg4 {[%clk 0:01:40]}  Qf6 {[%clk 0:01:21]} 15. Qe2 {[%clk 0:01:36]}  Qh4+ {[%clk 0:01:06]} 16. Qf2 {[%clk 0:01:35]}  Qxf2+ {[%clk 0:01:04]} 17. Kxf2 {[%clk 0:01:36]}  Bd6 {[%clk 0:01:02]} 18. Nf3 {[%clk 0:01:26]}  O-O {[%clk 0:00:57]} 19. Rhe1 {[%clk 0:01:21]}  Bc4 {[%clk 0:00:46]} 20. Kg2 {[%clk 0:01:13]}  Na6 {[%clk 0:00:45]} 21. a3 {[%clk 0:01:06]}  Nc7 {[%clk 0:00:39]} 22. g5 {[%clk 0:01:05]}  Nd5 {[%clk 0:00:30]} 23. Be6+ {[%clk 0:01:02]}  Kh7 {[%clk 0:00:28]} 24. Nxd5 {[%clk 0:00:58]}  cxd5 {[%clk 0:00:27]} 25. Ne5 {[%clk 0:00:49]}  Bxe5 {[%clk 0:00:19]} 26. Rxe5 {[%clk 0:00:50]}  Rae8 {[%clk 0:00:19]} 27. Rae1 {[%clk 0:00:48]}  Rd8 {[%clk 0:00:19]} 28. Bb4 {[%clk 0:00:43]}  Rf4 {[%clk 0:00:17]} 29. Bc3 {[%clk 0:00:34]}  Rdf8 {[%clk 0:00:16]} 30. Bxd5 {[%clk 0:00:22]}  Bxd5+ {[%clk 0:00:11]} 31. Rxd5 {[%clk 0:00:22]}  Rg4+ {[%clk 0:00:12]} 32. Kh3 {[%clk 0:00:17]}  h5 {[%clk 0:00:12]} 33. Re3 {[%clk 0:00:16]}  Rf2 {[%clk 0:00:10]} 34. Rg3 {[%clk 0:00:11]}  Rgf4 {[%clk 0:00:10]} 35. Rd7 {[%clk 0:00:07]}  h4 {[%clk 0:00:06]} 36. Re3 {[%clk 0:00:07]}  Rf5 {[%clk 0:00:02]} 37. d5 {[%clk 0:00:06]}  Rxg5 {[%clk 0:00:03]} 38. Rxg7+ {[%clk 0:00:06]}  Kh6 {[%clk 0:00:03]} 39. Rg8 {[%clk 0:00:03]}  Rgg2 {[%clk 0:00:03]} 40. Rh8+ {[%clk 0:00:03]}  Kg5 {[%clk 0:00:03]} 41. Re5+ {[%clk 0:00:01]}  Kf4 {[%clk 0:00:04]} 42. Rf8# {[%clk 0:00:01]} 1-0


[Site "https://www.chess.com"]

[Event "Titled Tuesday Blitz November 08 Early 2022"]
[White "Padmini, Rout"]
[Black "Moskvin, Anatoly"]
[WhiteFideId "5029295"]
[BlackFideId "24199990"]
[WhiteElo "2296"]
[BlackElo "2079"]
[Result "1-0"]
[Round "10"]
[TimeControl "180+1"]
[Date "2022.11.09"]
[WhiteClock "0:00:48"]
[BlackClock "0:00:03"]

1. e4 {[%clk 0:03:00]}  e5 {[%clk 0:02:52]} 2. Nc3 {[%clk 0:02:57]}  Nc6 {[%clk 0:02:53]} 3. g3 {[%clk 0:02:53]}  h5 {[%clk 0:02:53]} 4. Nf3 {[%clk 0:02:49]}  h4 {[%clk 0:02:53]} 5. Nxh4 {[%clk 0:02:48]}  Rxh4 {[%clk 0:02:53]} 6. gxh4 {[%clk 0:02:48]}  Qxh4 {[%clk 0:02:52]} 7. d3 {[%clk 0:02:44]}  Bc5 {[%clk 0:02:51]} 8. Qd2 {[%clk 0:02:39]}  Nd4 {[%clk 0:02:42]} 9. Be2 {[%clk 0:02:22]}  Ne7 {[%clk 0:02:29]} 10. Na4 {[%clk 0:02:21]}  d6 {[%clk 0:01:45]} 11. Nxc5 {[%clk 0:02:17]}  dxc5 {[%clk 0:01:43]} 12. c3 {[%clk 0:02:17]}  Ne6 {[%clk 0:01:38]} 13. Qe3 {[%clk 0:02:11]}  Ng6 {[%clk 0:01:36]} 14. Qg3 {[%clk 0:02:11]}  Qe7 {[%clk 0:01:31]} 15. Bg4 {[%clk 0:01:58]}  b6 {[%clk 0:01:14]} 16. Bxe6 {[%clk 0:01:56]}  Qxe6 {[%clk 0:01:12]} 17. h4 {[%clk 0:01:52]}  Ba6 {[%clk 0:01:07]} 18. c4 {[%clk 0:01:36]}  O-O-O {[%clk 0:00:55]} 19. Qh3 {[%clk 0:01:29]}  Qxh3 {[%clk 0:00:28]} 20. Rxh3 {[%clk 0:01:30]}  Rh8 {[%clk 0:00:29]} 21. h5 {[%clk 0:01:30]}  Kd8 {[%clk 0:00:29]} 22. Bd2 {[%clk 0:01:25]}  Bc8 {[%clk 0:00:29]} 23. Rh2 {[%clk 0:01:23]}  Bg4 {[%clk 0:00:28]} 24. h6 {[%clk 0:01:14]}  gxh6 {[%clk 0:00:25]} 25. Rxh6 {[%clk 0:01:15]}  Rg8 {[%clk 0:00:20]} 26. Bg5+ {[%clk 0:01:13]}  Kd7 {[%clk 0:00:20]} 27. Kd2 {[%clk 0:01:13]}  Nf8 {[%clk 0:00:13]} 28. Be3 {[%clk 0:01:08]}  Ne6 {[%clk 0:00:13]} 29. Rg1 {[%clk 0:01:07]}  Rg7 {[%clk 0:00:09]} 30. Rxe6 {[%clk 0:01:00]}  Kxe6 {[%clk 0:00:05]} 31. f3 {[%clk 0:01:00]}  Rh7 {[%clk 0:00:05]} 32. fxg4 {[%clk 0:00:52]}  Rh2+ {[%clk 0:00:06]} 33. Kc3 {[%clk 0:00:53]}  Kf6 {[%clk 0:00:05]} 34. g5+ {[%clk 0:00:52]}  Kg6 {[%clk 0:00:06]} 35. Rf1 {[%clk 0:00:52]}  Re2 {[%clk 0:00:05]} 36. Bc1 {[%clk 0:00:51]}  a5 {[%clk 0:00:05]} 37. a4 {[%clk 0:00:51]}  Kg7 {[%clk 0:00:04]} 38. Rf6 {[%clk 0:00:49]}  Rg2 {[%clk 0:00:03]} 39. Rc6 {[%clk 0:00:48]} 1-0


[Site "https://www.chess.com"]

[Event "Titled Tuesday Blitz November 08 Early 2022"]
[White "Pakleza, Zbigniew"]
[Black "Tifferet, Shaked"]
[WhiteFideId "1119290"]
[BlackFideId "2811529"]
[WhiteElo "2411"]
[BlackElo "2142"]
[Result "1-0"]
[Round "10"]
[TimeControl "180+1"]
[Date "2022.11.09"]
[WhiteClock "0:02:20"]
[BlackClock "0:00:38"]

1. d4 {[%clk 0:03:00]}  Nf6 {[%clk 0:02:59]} 2. Nf3 {[%clk 0:03:00]}  d5 {[%clk 0:02:59]} 3. Bf4 {[%clk 0:02:59]}  c6 {[%clk 0:02:54]} 4. e3 {[%clk 0:02:59]}  Bg4 {[%clk 0:02:52]} 5. c4 {[%clk 0:02:58]}  Nbd7 {[%clk 0:02:42]} 6. Nc3 {[%clk 0:02:56]}  e6 {[%clk 0:02:41]} 7. Qb3 {[%clk 0:02:56]}  Bxf3 {[%clk 0:02:33]} 8. gxf3 {[%clk 0:02:57]}  Qb6 {[%clk 0:02:33]} 9. Bg3 {[%clk 0:02:54]}  Qxb3 {[%clk 0:02:26]} 10. axb3 {[%clk 0:02:54]}  a6 {[%clk 0:02:23]} 11. c5 {[%clk 0:02:44]}  e5 {[%clk 0:02:08]} 12. b4 {[%clk 0:02:41]}  exd4 {[%clk 0:02:05]} 13. exd4 {[%clk 0:02:41]}  O-O-O {[%clk 0:01:43]} 14. Kd2 {[%clk 0:02:42]}  Be7 {[%clk 0:01:30]} 15. Rxa6 {[%clk 0:02:38]}  Nb8 {[%clk 0:00:55]} 16. Ra8 {[%clk 0:02:28]}  Kd7 {[%clk 0:00:39]} 17. Bh3+ {[%clk 0:02:25]}  Ke8 {[%clk 0:00:38]} 18. Rxb8 {[%clk 0:02:20]} 1-0


[Site "https://www.chess.com"]

[Event "Titled Tuesday Blitz November 08 Early 2022"]
[White "Paravyan, David"]
[Black "Wieczorek, Oskar"]
[WhiteFideId "4194985"]
[BlackFideId "1133950"]
[WhiteElo "2546"]
[BlackElo "2404"]
[Result "1-0"]
[Round "10"]
[TimeControl "180+1"]
[Date "2022.11.08"]
[WhiteClock "0:01:43"]
[BlackClock "0:00:19"]

1. e4 {[%clk 0:03:00]}  e5 {[%clk 0:02:55]} 2. Nf3 {[%clk 0:03:01]}  Nc6 {[%clk 0:02:55]} 3. Nc3 {[%clk 0:03:02]}  Nf6 {[%clk 0:02:55]} 4. d4 {[%clk 0:03:02]}  exd4 {[%clk 0:02:55]} 5. Nxd4 {[%clk 0:03:03]}  Bb4 {[%clk 0:02:56]} 6. Nxc6 {[%clk 0:03:04]}  bxc6 {[%clk 0:02:57]} 7. Bd3 {[%clk 0:03:04]}  O-O {[%clk 0:02:57]} 8. O-O {[%clk 0:03:05]}  d5 {[%clk 0:02:58]} 9. Bd2 {[%clk 0:03:05]}  Bxc3 {[%clk 0:02:28]} 10. Bxc3 {[%clk 0:03:06]}  dxe4 {[%clk 0:02:28]} 11. Bxf6 {[%clk 0:03:07]}  Qxf6 {[%clk 0:02:29]} 12. Bxe4 {[%clk 0:03:07]}  Qxb2 {[%clk 0:02:25]} 13. Bxc6 {[%clk 0:03:06]}  Rb8 {[%clk 0:02:24]} 14. Rb1 {[%clk 0:03:07]}  Qxb1 {[%clk 0:02:24]} 15. Qxb1 {[%clk 0:03:08]}  Rxb1 {[%clk 0:02:25]} 16. Rxb1 {[%clk 0:03:09]}  Rd8 {[%clk 0:02:20]} 17. Bf3 {[%clk 0:03:09]}  Kf8 {[%clk 0:01:53]} 18. Rb8 {[%clk 0:03:05]}  Re8 {[%clk 0:01:50]} 19. h3 {[%clk 0:03:03]}  Ba6 {[%clk 0:01:38]} 20. Rb3 {[%clk 0:03:02]}  Be2 {[%clk 0:01:31]} 21. Bc6 {[%clk 0:01:57]}  Re6 {[%clk 0:01:19]} 22. Rc3 {[%clk 0:01:50]}  Rd6 {[%clk 0:00:52]} 23. Ba4 {[%clk 0:01:47]}  Rd4 {[%clk 0:00:33]} 24. Bb3 {[%clk 0:01:46]}  Rd7 {[%clk 0:00:33]} 25. Rc5 {[%clk 0:01:45]}  a6 {[%clk 0:00:28]} 26. f3 {[%clk 0:01:44]}  Ke7 {[%clk 0:00:19]} 27. Re5+ {[%clk 0:01:43]} 1-0


[Site "https://www.chess.com"]

[Event "Titled Tuesday Blitz November 08 Early 2022"]
[White "Peyrer, Konstantin"]
[Black "Chigaev, Maksim"]
[WhiteFideId "1640879"]
[BlackFideId "4108116"]
[WhiteElo "2415"]
[BlackElo "2541"]
[Result "0-1"]
[Round "10"]
[TimeControl "180+1"]
[Date "2022.11.08"]
[WhiteClock "0:01:15"]
[BlackClock "0:00:48"]

1. d4 {[%clk 0:03:00]}  Nf6 {[%clk 0:02:58]} 2. c4 {[%clk 0:03:00]}  g6 {[%clk 0:02:58]} 3. Nc3 {[%clk 0:02:58]}  d5 {[%clk 0:02:59]} 4. cxd5 {[%clk 0:02:59]}  Nxd5 {[%clk 0:02:57]} 5. e4 {[%clk 0:03:00]}  Nxc3 {[%clk 0:02:58]} 6. bxc3 {[%clk 0:03:01]}  Bg7 {[%clk 0:02:59]} 7. Nf3 {[%clk 0:03:01]}  c5 {[%clk 0:02:59]} 8. Be3 {[%clk 0:03:02]}  Bg4 {[%clk 0:02:58]} 9. Qb3 {[%clk 0:02:45]}  Bxf3 {[%clk 0:02:50]} 10. gxf3 {[%clk 0:02:43]}  cxd4 {[%clk 0:02:19]} 11. Rd1 {[%clk 0:02:41]}  O-O {[%clk 0:02:16]} 12. cxd4 {[%clk 0:02:41]}  Nc6 {[%clk 0:02:14]} 13. Qa4 {[%clk 0:02:39]}  a6 {[%clk 0:02:08]} 14. e5 {[%clk 0:02:27]}  b5 {[%clk 0:02:06]} 15. Qc2 {[%clk 0:02:26]}  Rc8 {[%clk 0:01:52]} 16. Qe4 {[%clk 0:02:21]}  e6 {[%clk 0:01:48]} 17. h4 {[%clk 0:02:14]}  Qa5+ {[%clk 0:01:41]} 18. Bd2 {[%clk 0:02:03]}  Qa4 {[%clk 0:01:36]} 19. Bg5 {[%clk 0:01:38]}  h6 {[%clk 0:01:15]} 20. Bf6 {[%clk 0:01:32]}  Bxf6 {[%clk 0:01:16]} 21. exf6 {[%clk 0:01:33]}  Rfd8 {[%clk 0:01:16]} 22. d5 {[%clk 0:01:26]}  Qa5+ {[%clk 0:00:58]} 23. Ke2 {[%clk 0:01:20]}  exd5 {[%clk 0:00:55]} 24. Qf4 {[%clk 0:01:16]}  Re8+ {[%clk 0:00:52]} 25. Kd3 {[%clk 0:01:15]}  Nb4+ {[%clk 0:00:49]} 26. Kd4 {[%clk 0:01:15]}  Qb6# {[%clk 0:00:48]} 0-1


[Site "https://www.chess.com"]

[Event "Titled Tuesday Blitz November 08 Early 2022"]
[White "Piesik, Piotr"]
[Black "Mosadeghpour, Masoud"]
[WhiteFideId "1136194"]
[BlackFideId "12519278"]
[WhiteElo "2316"]
[BlackElo "2393"]
[Result "0-1"]
[Round "10"]
[TimeControl "180+1"]
[Date "2022.11.08"]
[WhiteClock "0:00:31"]
[BlackClock "0:00:20"]

1. Nf3 {[%clk 0:03:00]}  Nf6 {[%clk 0:02:58]} 2. g3 {[%clk 0:03:00]}  g6 {[%clk 0:02:57]} 3. Bg2 {[%clk 0:03:01]}  Bg7 {[%clk 0:02:58]} 4. O-O {[%clk 0:03:01]}  O-O {[%clk 0:02:59]} 5. d4 {[%clk 0:03:01]}  d5 {[%clk 0:03:00]} 6. c4 {[%clk 0:03:02]}  dxc4 {[%clk 0:03:01]} 7. Na3 {[%clk 0:03:02]}  c3 {[%clk 0:03:01]} 8. bxc3 {[%clk 0:03:03]}  c5 {[%clk 0:03:02]} 9. Qb3 {[%clk 0:03:03]}  Nc6 {[%clk 0:02:57]} 10. Rd1 {[%clk 0:03:03]}  Na5 {[%clk 0:02:51]} 11. Qb2 {[%clk 0:03:03]}  cxd4 {[%clk 0:02:49]} 12. cxd4 {[%clk 0:03:03]}  Be6 {[%clk 0:02:46]} 13. Bd2 {[%clk 0:02:59]}  Nc4 {[%clk 0:02:38]} 14. Nxc4 {[%clk 0:02:58]}  Bxc4 {[%clk 0:02:39]} 15. e3 {[%clk 0:02:56]}  Bd5 {[%clk 0:02:37]} 16. Rac1 {[%clk 0:02:53]}  Rc8 {[%clk 0:02:35]} 17. Bb4 {[%clk 0:02:44]}  Qd7 {[%clk 0:02:22]} 18. Ne5 {[%clk 0:02:42]}  Qe6 {[%clk 0:02:22]} 19. a3 {[%clk 0:02:36]}  Bxg2 {[%clk 0:02:19]} 20. Kxg2 {[%clk 0:02:37]}  Nd5 {[%clk 0:02:17]} 21. Nd3 {[%clk 0:02:25]}  Rxc1 {[%clk 0:02:14]} 22. Qxc1 {[%clk 0:02:25]}  Rc8 {[%clk 0:02:13]} 23. Qd2 {[%clk 0:02:25]}  Qe4+ {[%clk 0:02:11]} 24. Kg1 {[%clk 0:02:24]}  b6 {[%clk 0:02:11]} 25. Qb2 {[%clk 0:02:03]}  a5 {[%clk 0:01:58]} 26. Be1 {[%clk 0:02:03]}  Bh6 {[%clk 0:01:58]} 27. Qe2 {[%clk 0:01:41]}  f6 {[%clk 0:01:18]} 28. h3 {[%clk 0:01:33]}  Qe6 {[%clk 0:00:59]} 29. Kh2 {[%clk 0:01:10]}  Qe4 {[%clk 0:00:57]} 30. Kg1 {[%clk 0:01:09]}  Bg5 {[%clk 0:00:50]} 31. Kh2 {[%clk 0:01:06]}  h5 {[%clk 0:00:49]} 32. Rc1 {[%clk 0:01:00]}  Rxc1 {[%clk 0:00:46]} 33. Nxc1 {[%clk 0:01:01]}  h4 {[%clk 0:00:46]} 34. Qg4 {[%clk 0:00:44]}  hxg3+ {[%clk 0:00:42]} 35. Kxg3 {[%clk 0:00:37]}  Qh1 {[%clk 0:00:41]} 36. Nd3 {[%clk 0:00:33]}  Kg7 {[%clk 0:00:22]} 37. Qf3 {[%clk 0:00:32]}  Bh4+ {[%clk 0:00:20]} 38. Kg4 {[%clk 0:00:31]}  f5+ {[%clk 0:00:20]} 0-1


[Site "https://www.chess.com"]

[Event "Titled Tuesday Blitz November 08 Early 2022"]
[White "Rios Escobar, Adan"]
[Black "Cramling Bellon, Anna"]
[WhiteFideId "3403645"]
[BlackFideId "32009232"]
[WhiteElo "2338"]
[BlackElo "1972"]
[Result "1-0"]
[Round "10"]
[TimeControl "180+1"]
[Date "2022.11.09"]
[WhiteClock "0:00:33"]
[BlackClock "0:00:02"]

1. d4 {[%clk 0:02:20]}  Nf6 {[%clk 0:02:58]} 2. g3 {[%clk 0:02:19]}  d5 {[%clk 0:02:56]} 3. c4 {[%clk 0:02:18]}  e6 {[%clk 0:02:54]} 4. Nf3 {[%clk 0:02:17]}  Bb4+ {[%clk 0:02:53]} 5. Nbd2 {[%clk 0:02:17]}  dxc4 {[%clk 0:02:51]} 6. Bg2 {[%clk 0:02:13]}  c6 {[%clk 0:02:51]} 7. O-O {[%clk 0:02:11]}  b5 {[%clk 0:02:46]} 8. a4 {[%clk 0:02:06]}  c3 {[%clk 0:02:40]} 9. Nb3 {[%clk 0:02:02]}  Bb7 {[%clk 0:02:27]} 10. Ne5 {[%clk 0:02:02]}  Nd5 {[%clk 0:02:16]} 11. e4 {[%clk 0:01:56]}  cxb2 {[%clk 0:02:12]} 12. Bxb2 {[%clk 0:01:55]}  Nc3 {[%clk 0:02:06]} 13. Bxc3 {[%clk 0:01:51]}  Bxc3 {[%clk 0:02:07]} 14. Qf3 {[%clk 0:01:52]}  f6 {[%clk 0:01:58]} 15. Qh5+ {[%clk 0:01:48]}  g6 {[%clk 0:01:11]} 16. Nxg6 {[%clk 0:01:47]}  hxg6 {[%clk 0:01:11]} 17. Qxh8+ {[%clk 0:01:47]}  Ke7 {[%clk 0:01:10]} 18. Qg7+ {[%clk 0:01:44]}  Ke8 {[%clk 0:01:02]} 19. Qxb7 {[%clk 0:01:43]}  Bxa1 {[%clk 0:00:56]} 20. Qxa8 {[%clk 0:01:37]}  Bc3 {[%clk 0:00:42]} 21. Qxa7 {[%clk 0:01:32]}  Nd7 {[%clk 0:00:29]} 22. Rc1 {[%clk 0:01:23]}  b4 {[%clk 0:00:28]} 23. a5 {[%clk 0:01:17]}  e5 {[%clk 0:00:23]} 24. a6 {[%clk 0:01:12]}  exd4 {[%clk 0:00:14]} 25. Nxd4 {[%clk 0:01:11]}  Bxd4 {[%clk 0:00:11]} 26. Qxd4 {[%clk 0:01:12]}  Qa5 {[%clk 0:00:09]} 27. Ra1 {[%clk 0:01:05]}  c5 {[%clk 0:00:01]} 28. Qxd7+ {[%clk 0:00:50]}  Kxd7 {[%clk 0:00:01]} 29. Rxa5 {[%clk 0:00:51]}  c4 {[%clk 0:00:01]} 30. a7 {[%clk 0:00:44]}  c3 {[%clk 0:00:01]} 31. a8=Q {[%clk 0:00:44]}  c2 {[%clk 0:00:01]} 32. Qd5+ {[%clk 0:00:40]}  Ke7 {[%clk 0:00:02]} 33. Ra7+ {[%clk 0:00:39]}  Ke8 {[%clk 0:00:02]} 34. Qc4 {[%clk 0:00:34]}  Kf8 {[%clk 0:00:02]} 35. Qxc2 {[%clk 0:00:34]}  Kg8 {[%clk 0:00:01]} 36. Qb3+ {[%clk 0:00:33]}  Kh8 {[%clk 0:00:02]} 37. Qxb4 {[%clk 0:00:33]} 1-0


[Site "https://www.chess.com"]

[Event "Titled Tuesday Blitz November 08 Early 2022"]
[White "Ristic, Nebojsa B"]
[Black "Krysa, Leandro"]
[WhiteFideId "935468"]
[BlackFideId "116807"]
[WhiteElo "2320"]
[BlackElo "2485"]
[Result "1-0"]
[Round "10"]
[TimeControl "180+1"]
[Date "2022.11.09"]
[WhiteClock "0:01:02"]
[BlackClock "0:00:07"]

1. d4 {[%clk 0:03:00]}  g6 {[%clk 0:02:59]} 2. Bf4 {[%clk 0:03:00]}  Bg7 {[%clk 0:02:59]} 3. e4 {[%clk 0:03:00]}  d6 {[%clk 0:03:00]} 4. Nc3 {[%clk 0:02:59]}  a6 {[%clk 0:02:57]} 5. Qd2 {[%clk 0:02:59]}  b5 {[%clk 0:02:56]} 6. Nf3 {[%clk 0:02:55]}  Bb7 {[%clk 0:02:52]} 7. d5 {[%clk 0:02:53]}  Nf6 {[%clk 0:02:47]} 8. Bd3 {[%clk 0:02:51]}  c6 {[%clk 0:02:43]} 9. dxc6 {[%clk 0:02:50]}  Nxc6 {[%clk 0:02:43]} 10. Bh6 {[%clk 0:02:49]}  O-O {[%clk 0:02:42]} 11. O-O-O {[%clk 0:02:46]}  Rc8 {[%clk 0:02:39]} 12. Kb1 {[%clk 0:02:46]}  b4 {[%clk 0:02:27]} 13. Nd5 {[%clk 0:02:44]}  Nxd5 {[%clk 0:02:17]} 14. exd5 {[%clk 0:02:45]}  Ne5 {[%clk 0:02:17]} 15. Bxg7 {[%clk 0:02:30]}  Kxg7 {[%clk 0:02:13]} 16. Qxb4 {[%clk 0:02:09]}  Nxf3 {[%clk 0:02:05]} 17. gxf3 {[%clk 0:02:09]}  Rb8 {[%clk 0:02:03]} 18. Qd4+ {[%clk 0:02:07]}  Kg8 {[%clk 0:02:02]} 19. h4 {[%clk 0:02:07]}  Qa5 {[%clk 0:02:00]} 20. c4 {[%clk 0:02:02]}  Qc5 {[%clk 0:01:56]} 21. Qxc5 {[%clk 0:01:59]}  dxc5 {[%clk 0:01:56]} 22. h5 {[%clk 0:01:58]}  Kg7 {[%clk 0:01:54]} 23. Be4 {[%clk 0:01:49]}  Bc8 {[%clk 0:01:46]} 24. hxg6 {[%clk 0:01:46]}  hxg6 {[%clk 0:01:46]} 25. d6 {[%clk 0:01:45]}  exd6 {[%clk 0:01:38]} 26. Rxd6 {[%clk 0:01:45]}  Be6 {[%clk 0:01:38]} 27. Bd5 {[%clk 0:01:39]}  Rfd8 {[%clk 0:01:28]} 28. Rxd8 {[%clk 0:01:35]}  Rxd8 {[%clk 0:01:29]} 29. Bxe6 {[%clk 0:01:34]}  fxe6 {[%clk 0:01:28]} 30. Re1 {[%clk 0:01:33]}  Kf6 {[%clk 0:01:28]} 31. Kc2 {[%clk 0:01:33]}  Rd4 {[%clk 0:01:16]} 32. Re4 {[%clk 0:01:26]}  e5 {[%clk 0:00:55]} 33. Rxd4 {[%clk 0:01:13]}  exd4 {[%clk 0:00:55]} 34. b4 {[%clk 0:01:10]}  cxb4 {[%clk 0:00:51]} 35. Kd3 {[%clk 0:01:10]}  Ke5 {[%clk 0:00:50]} 36. f4+ {[%clk 0:01:09]}  Kd6 {[%clk 0:00:31]} 37. Kxd4 {[%clk 0:01:10]}  Kc6 {[%clk 0:00:20]} 38. c5 {[%clk 0:01:05]}  a5 {[%clk 0:00:12]} 39. Kc4 {[%clk 0:01:03]}  Kc7 {[%clk 0:00:09]} 40. Kb5 {[%clk 0:01:03]}  b3 {[%clk 0:00:07]} 41. axb3 {[%clk 0:01:02]} 1-0


[Site "https://www.chess.com"]